[Event "Titled Tuesday Blitz May 10 Late 2022"]
[White "Demchenko, Anton"]
[Black "Srinath, Rao S.V."]
[WhiteFideId "4160258"]
[BlackFideId "5028876"]
[WhiteElo "2539"]
[BlackElo "2181"]
[Result "1-0"]
[Round "06"]
[TimeControl "180+1"]
[Date "2022.05.10"]
[WhiteClock "0:00:07"]
[BlackClock "0:00:30"]

1. e4 {[%clk 0:03:00]}  e6 {[%clk 0:02:59]} 2. d4 {[%clk 0:03:00]}  d5 {[%clk 0:03:00]} 3. Nd2 {[%clk 0:03:00]}  Nf6 {[%clk 0:03:00]} 4. e5 {[%clk 0:03:00]}  Nfd7 {[%clk 0:03:00]} 5. c3 {[%clk 0:03:00]}  c5 {[%clk 0:03:01]} 6. f4 {[%clk 0:03:01]}  Nc6 {[%clk 0:03:01]} 7. Ndf3 {[%clk 0:03:01]}  f6 {[%clk 0:03:00]} 8. Bd3 {[%clk 0:03:01]}  cxd4 {[%clk 0:02:59]} 9. cxd4 {[%clk 0:03:01]}  Bb4+ {[%clk 0:02:59]} 10. Bd2 {[%clk 0:02:57]}  Bxd2+ {[%clk 0:02:57]} 11. Qxd2 {[%clk 0:02:57]}  O-O {[%clk 0:02:57]} 12. Ne2 {[%clk 0:02:48]}  a5 {[%clk 0:02:55]} 13. O-O {[%clk 0:02:45]}  a4 {[%clk 0:02:55]} 14. Rac1 {[%clk 0:02:33]}  a3 {[%clk 0:02:53]} 15. b3 {[%clk 0:02:20]}  Qb6 {[%clk 0:02:33]} 16. Kh1 {[%clk 0:02:20]}  f5 {[%clk 0:02:21]} 17. h3 {[%clk 0:02:19]}  Qb4 {[%clk 0:02:21]} 18. Qe3 {[%clk 0:02:18]}  Ne7 {[%clk 0:02:13]} 19. Nc3 {[%clk 0:02:14]}  b6 {[%clk 0:02:07]} 20. Ng5 {[%clk 0:02:03]}  Nb8 {[%clk 0:02:06]} 21. Nb5 {[%clk 0:02:01]}  h6 {[%clk 0:01:55]} 22. Nc7 {[%clk 0:01:43]}  hxg5 {[%clk 0:01:48]} 23. Nxa8 {[%clk 0:01:44]}  Nbc6 {[%clk 0:01:48]} 24. fxg5 {[%clk 0:01:44]}  Qxd4 {[%clk 0:01:37]} 25. Qxd4 {[%clk 0:01:43]}  Nxd4 {[%clk 0:01:38]} 26. Nxb6 {[%clk 0:01:44]}  Nec6 {[%clk 0:01:34]} 27. Bb5 {[%clk 0:00:56]}  Bb7 {[%clk 0:01:28]} 28. Bxc6 {[%clk 0:00:53]}  Nxc6 {[%clk 0:01:26]} 29. Nd7 {[%clk 0:00:50]}  Re8 {[%clk 0:01:25]} 30. Rf4 {[%clk 0:00:41]}  Bc8 {[%clk 0:01:23]} 31. Rxc6 {[%clk 0:00:39]}  Bxd7 {[%clk 0:01:23]} 32. Rc7 {[%clk 0:00:39]}  Bb5 {[%clk 0:01:23]} 33. g6 {[%clk 0:00:38]}  Rd8 {[%clk 0:01:06]} 34. Rb4 {[%clk 0:00:32]}  Be8 {[%clk 0:01:03]} 35. Rbb7 {[%clk 0:00:32]}  d4 {[%clk 0:01:02]} 36. Rxg7+ {[%clk 0:00:32]}  Kf8 {[%clk 0:00:59]} 37. Rh7 {[%clk 0:00:31]}  Kg8 {[%clk 0:01:00]} 38. Rbg7+ {[%clk 0:00:08]}  Kf8 {[%clk 0:00:59]} 39. Rc7 {[%clk 0:00:09]}  Kg8 {[%clk 0:00:56]} 40. Rc2 {[%clk 0:00:07]}  Bxg6 {[%clk 0:00:55]} 41. Rhc7 {[%clk 0:00:07]}  Rd5 {[%clk 0:00:50]} 42. R7c5 {[%clk 0:00:05]}  d3 {[%clk 0:00:34]} 43. Rxd5 {[%clk 0:00:05]}  exd5 {[%clk 0:00:35]} 44. Rd2 {[%clk 0:00:05]}  f4 {[%clk 0:00:34]} 45. b4 {[%clk 0:00:05]}  Kf7 {[%clk 0:00:34]} 46. b5 {[%clk 0:00:05]}  Be4 {[%clk 0:00:28]} 47. b6 {[%clk 0:00:05]}  d4 {[%clk 0:00:28]} 48. b7 {[%clk 0:00:06]}  Bxb7 {[%clk 0:00:28]} 49. Rxd3 {[%clk 0:00:06]}  Ke6 {[%clk 0:00:29]} 50. Rxd4 {[%clk 0:00:07]}  Kxe5 {[%clk 0:00:30]} 51. Ra4 {[%clk 0:00:07]} 1-0


[Site "https://www.chess.com"]

[Event "Titled Tuesday Blitz May 10 Late 2022"]
[White "Donchenko, Alexander"]
[Black "Nakamura, Hikaru"]
[WhiteFideId "24603295"]
[BlackFideId "2016192"]
[WhiteElo "2572"]
[BlackElo "2850"]
[Result "0-1"]
[Round "06"]
[TimeControl "180+1"]
[Date "2022.05.10"]
[WhiteClock "0:00:06"]
[BlackClock "0:00:10"]

1. d4 {[%clk 0:03:00]}  g6 {[%clk 0:02:59]} 2. Nf3 {[%clk 0:03:00]}  Bg7 {[%clk 0:02:59]} 3. g3 {[%clk 0:03:01]}  d6 {[%clk 0:03:00]} 4. Bg2 {[%clk 0:03:01]}  Bd7 {[%clk 0:03:00]} 5. O-O {[%clk 0:03:01]}  Qc8 {[%clk 0:03:01]} 6. e4 {[%clk 0:03:00]}  Nc6 {[%clk 0:03:01]} 7. Re1 {[%clk 0:02:57]}  Bh3 {[%clk 0:03:00]} 8. Bh1 {[%clk 0:02:56]}  h5 {[%clk 0:03:00]} 9. c3 {[%clk 0:02:41]}  e5 {[%clk 0:02:56]} 10. dxe5 {[%clk 0:02:38]}  Nxe5 {[%clk 0:02:53]} 11. Nxe5 {[%clk 0:02:37]}  dxe5 {[%clk 0:02:52]} 12. Nd2 {[%clk 0:02:32]}  h4 {[%clk 0:02:52]} 13. Nf3 {[%clk 0:02:29]}  Bg4 {[%clk 0:02:49]} 14. Qa4+ {[%clk 0:02:26]}  Bd7 {[%clk 0:02:48]} 15. Qb3 {[%clk 0:02:21]}  hxg3 {[%clk 0:02:42]} 16. hxg3 {[%clk 0:02:21]}  f6 {[%clk 0:02:37]} 17. Be3 {[%clk 0:02:03]}  Ne7 {[%clk 0:02:35]} 18. Rad1 {[%clk 0:01:58]}  Be6 {[%clk 0:02:35]} 19. Qa4+ {[%clk 0:01:56]}  Kf7 {[%clk 0:02:35]} 20. Bg2 {[%clk 0:01:42]}  a6 {[%clk 0:02:27]} 21. Bc5 {[%clk 0:01:32]}  Bf8 {[%clk 0:02:22]} 22. Qc2 {[%clk 0:01:15]}  b6 {[%clk 0:02:21]} 23. Be3 {[%clk 0:01:09]}  Bh6 {[%clk 0:02:18]} 24. Qd2 {[%clk 0:01:06]}  Bxe3 {[%clk 0:02:18]} 25. Qxe3 {[%clk 0:01:07]}  Bxa2 {[%clk 0:02:15]} 26. Nd2 {[%clk 0:01:03]}  Be6 {[%clk 0:02:07]} 27. Bf1 {[%clk 0:01:03]}  Qg8 {[%clk 0:02:04]} 28. Bc4 {[%clk 0:00:57]}  Qh7 {[%clk 0:02:00]} 29. Bxe6+ {[%clk 0:00:57]}  Kxe6 {[%clk 0:02:01]} 30. Kf1 {[%clk 0:00:57]}  Rad8 {[%clk 0:01:58]} 31. Nf3 {[%clk 0:00:52]}  Nc8 {[%clk 0:01:49]} 32. c4 {[%clk 0:00:51]}  Qe7 {[%clk 0:01:18]} 33. Rxd8 {[%clk 0:00:50]}  Qxd8 {[%clk 0:01:15]} 34. c5 {[%clk 0:00:51]}  Qe8 {[%clk 0:00:42]} 35. cxb6 {[%clk 0:00:47]}  Qb5+ {[%clk 0:00:39]} 36. Kg2 {[%clk 0:00:47]}  Qxb6 {[%clk 0:00:39]} 37. Qd3 {[%clk 0:00:44]}  g5 {[%clk 0:00:40]} 38. Rd1 {[%clk 0:00:37]}  Qc6 {[%clk 0:00:31]} 39. Nd2 {[%clk 0:00:26]}  Nd6 {[%clk 0:00:31]} 40. Qb3+ {[%clk 0:00:26]}  Ke7 {[%clk 0:00:31]} 41. Qb4 {[%clk 0:00:25]}  g4 {[%clk 0:00:30]} 42. Ra1 {[%clk 0:00:22]}  Qb5 {[%clk 0:00:28]} 43. Qc3 {[%clk 0:00:20]}  Kd7 {[%clk 0:00:28]} 44. Rc1 {[%clk 0:00:20]}  Qb7 {[%clk 0:00:26]} 45. Qd3 {[%clk 0:00:19]}  Ke7 {[%clk 0:00:25]} 46. Rc5 {[%clk 0:00:19]}  Rd8 {[%clk 0:00:25]} 47. Rd5 {[%clk 0:00:19]}  Nxe4 {[%clk 0:00:17]} 48. Rxd8 {[%clk 0:00:19]}  Nd6+ {[%clk 0:00:17]} 49. Kg1 {[%clk 0:00:11]}  Kxd8 {[%clk 0:00:17]} 50. Qg6 {[%clk 0:00:09]}  Qxb2 {[%clk 0:00:16]} 51. Qxf6+ {[%clk 0:00:09]}  Kc8 {[%clk 0:00:16]} 52. Nf1 {[%clk 0:00:08]}  Kb7 {[%clk 0:00:13]} 53. Qe6 {[%clk 0:00:08]}  Qd4 {[%clk 0:00:11]} 54. Ne3 {[%clk 0:00:07]}  a5 {[%clk 0:00:12]} 55. Qb3+ {[%clk 0:00:07]}  Kc8 {[%clk 0:00:11]} 56. Qe6+ {[%clk 0:00:07]}  Kb7 {[%clk 0:00:12]} 57. Qb3+ {[%clk 0:00:07]}  Kc6 {[%clk 0:00:12]} 58. Qc2+ {[%clk 0:00:07]}  Kd7 {[%clk 0:00:09]} 59. Qh7+ {[%clk 0:00:07]}  Kd8 {[%clk 0:00:09]} 60. Qg8+ {[%clk 0:00:07]}  Ne8 {[%clk 0:00:09]} 61. Nxg4 {[%clk 0:00:06]}  Qd6 {[%clk 0:00:07]} 62. Ne3 {[%clk 0:00:06]}  a4 {[%clk 0:00:08]} 63. Nc4 {[%clk 0:00:03]}  Qc5 {[%clk 0:00:06]} 64. Qe6 {[%clk 0:00:01]}  Qe7 {[%clk 0:00:06]} 65. Qd5+ {[%clk 0:00:01]}  Nd6 {[%clk 0:00:06]} 66. Nxe5 {[%clk 0:00:01]}  Qe8 {[%clk 0:00:07]} 67. Nc6+ {[%clk 0:00:01]}  Kd7 {[%clk 0:00:07]} 68. Nd4 {[%clk 0:00:02]}  Qe1+ {[%clk 0:00:07]} 69. Kg2 {[%clk 0:00:02]}  Qc3 {[%clk 0:00:08]} 70. Qe6+ {[%clk 0:00:02]}  Kd8 {[%clk 0:00:08]} 71. Nf3 {[%clk 0:00:03]}  Qc6 {[%clk 0:00:07]} 72. Qf6+ {[%clk 0:00:03]}  Kc8 {[%clk 0:00:07]} 73. g4 {[%clk 0:00:03]}  a3 {[%clk 0:00:07]} 74. g5 {[%clk 0:00:03]}  a2 {[%clk 0:00:08]} 75. g6 {[%clk 0:00:04]}  Qd5 {[%clk 0:00:07]} 76. g7 {[%clk 0:00:04]}  Kb7 {[%clk 0:00:06]} 77. Qb2+ {[%clk 0:00:03]}  Kc6 {[%clk 0:00:06]} 78. Qc3+ {[%clk 0:00:03]}  Kb7 {[%clk 0:00:06]} 79. Qb2+ {[%clk 0:00:03]}  Ka6 {[%clk 0:00:05]} 80. Qa3+ {[%clk 0:00:04]}  Kb5 {[%clk 0:00:06]} 81. Qb2+ {[%clk 0:00:04]}  Kc6 {[%clk 0:00:07]} 82. Qc3+ {[%clk 0:00:04]}  Kd7 {[%clk 0:00:07]} 83. Qb2 {[%clk 0:00:04]}  Nf5 {[%clk 0:00:08]} 84. Kf1 {[%clk 0:00:03]}  Ne3+ {[%clk 0:00:07]} 85. fxe3 {[%clk 0:00:03]}  Qxf3+ {[%clk 0:00:08]} 86. Ke1 {[%clk 0:00:04]}  Qh1+ {[%clk 0:00:08]} 87. Kf2 {[%clk 0:00:04]}  Qh2+ {[%clk 0:00:08]} 88. Kf3 {[%clk 0:00:04]}  Qxb2 {[%clk 0:00:08]} 89. g8=Q {[%clk 0:00:05]}  Qf6+ {[%clk 0:00:08]} 90. Kg4 {[%clk 0:00:05]}  a1=Q {[%clk 0:00:09]} 91. Qd5+ {[%clk 0:00:06]}  Ke7 {[%clk 0:00:10]} 92. Qc5+ {[%clk 0:00:06]}  Qd6 {[%clk 0:00:10]} 93. Qg5+ {[%clk 0:00:06]}  Qaf6 {[%clk 0:00:10]} 0-1


[Site "https://www.chess.com"]

[Event "Titled Tuesday Blitz May 10 Late 2022"]
[White "Wagner, Dinara"]
[Black "Remolar Gallen, Jose"]
[WhiteFideId "24157570"]
[BlackFideId "2215187"]
[WhiteElo "2216"]
[BlackElo "2205"]
[Result "0-1"]
[Round "06"]
[TimeControl "180+1"]
[Date "2022.05.11"]
[WhiteClock "0:00:26"]
[BlackClock "0:00:22"]

1. b3 {[%clk 0:03:00]}  e5 {[%clk 0:02:59]} 2. Bb2 {[%clk 0:03:00]}  Nc6 {[%clk 0:03:00]} 3. g3 {[%clk 0:03:00]}  d5 {[%clk 0:02:59]} 4. c4 {[%clk 0:03:00]}  d4 {[%clk 0:02:53]} 5. Bg2 {[%clk 0:03:01]}  Nf6 {[%clk 0:02:51]} 6. d3 {[%clk 0:03:00]}  Bb4+ {[%clk 0:02:51]} 7. Nd2 {[%clk 0:03:00]}  O-O {[%clk 0:02:49]} 8. a3 {[%clk 0:03:00]}  Bc3 {[%clk 0:02:47]} 9. Qc2 {[%clk 0:02:56]}  Bxb2 {[%clk 0:02:36]} 10. Qxb2 {[%clk 0:02:57]}  Bf5 {[%clk 0:02:36]} 11. Ngf3 {[%clk 0:02:54]}  h6 {[%clk 0:02:23]} 12. O-O {[%clk 0:02:53]}  Re8 {[%clk 0:02:23]} 13. b4 {[%clk 0:02:45]}  Qd7 {[%clk 0:02:20]} 14. b5 {[%clk 0:02:45]}  Nd8 {[%clk 0:02:19]} 15. Rfe1 {[%clk 0:02:41]}  Rb8 {[%clk 0:02:02]} 16. c5 {[%clk 0:02:41]}  Nd5 {[%clk 0:01:47]} 17. Nc4 {[%clk 0:02:39]}  Nc3 {[%clk 0:01:41]} 18. Nxd4 {[%clk 0:02:37]}  exd4 {[%clk 0:01:36]} 19. a4 {[%clk 0:02:19]}  Bg4 {[%clk 0:01:01]} 20. f3 {[%clk 0:02:14]}  Be6 {[%clk 0:00:59]} 21. Ne5 {[%clk 0:02:12]}  Qd5 {[%clk 0:00:53]} 22. f4 {[%clk 0:02:06]}  Qxc5 {[%clk 0:00:53]} 23. Rac1 {[%clk 0:02:02]}  f6 {[%clk 0:00:38]} 24. Nf3 {[%clk 0:01:50]}  Qb6 {[%clk 0:00:36]} 25. e3 {[%clk 0:01:45]}  Nxa4 {[%clk 0:00:31]} 26. Qb4 {[%clk 0:01:45]}  Nc5 {[%clk 0:00:28]} 27. Rxc5 {[%clk 0:01:34]}  a5 {[%clk 0:00:25]} 28. Qxd4 {[%clk 0:01:32]}  Bf7 {[%clk 0:00:20]} 29. Rcc1 {[%clk 0:01:31]}  Qxb5 {[%clk 0:00:20]} 30. Rb1 {[%clk 0:01:20]}  Qa6 {[%clk 0:00:18]} 31. Rec1 {[%clk 0:01:20]}  Ne6 {[%clk 0:00:18]} 32. Qc3 {[%clk 0:01:18]}  b5 {[%clk 0:00:17]} 33. f5 {[%clk 0:01:10]}  b4 {[%clk 0:00:17]} 34. Qd2 {[%clk 0:01:07]}  Ng5 {[%clk 0:00:15]} 35. Nd4 {[%clk 0:01:07]}  b3 {[%clk 0:00:11]} 36. Rxc7 {[%clk 0:01:07]}  a4 {[%clk 0:00:09]} 37. Qc3 {[%clk 0:00:55]}  a3 {[%clk 0:00:07]} 38. Rxf7 {[%clk 0:00:32]}  Nxf7 {[%clk 0:00:08]} 39. Nxb3 {[%clk 0:00:32]}  a2 {[%clk 0:00:08]} 40. Ra1 {[%clk 0:00:32]}  Qa3 {[%clk 0:00:08]} 41. Bd5 {[%clk 0:00:33]}  Rec8 {[%clk 0:00:07]} 42. Qd4 {[%clk 0:00:25]}  Rxb3 {[%clk 0:00:05]} 43. Bxf7+ {[%clk 0:00:26]}  Kxf7 {[%clk 0:00:05]} 44. Qd7+ {[%clk 0:00:26]}  Qe7 {[%clk 0:00:06]} 45. Qxc8 {[%clk 0:00:26]}  Rb1+ {[%clk 0:00:06]} 46. Kg2 {[%clk 0:00:25]}  Rxa1 {[%clk 0:00:05]} 47. Qc4+ {[%clk 0:00:25]}  Kf8 {[%clk 0:00:04]} 48. Qc8+ {[%clk 0:00:26]}  Qe8 {[%clk 0:00:04]} 49. Qc5+ {[%clk 0:00:26]}  Kg8 {[%clk 0:00:05]} 50. Qc4+ {[%clk 0:00:26]}  Kh8 {[%clk 0:00:06]} 51. Kh3 {[%clk 0:00:27]}  Rb1 {[%clk 0:00:05]} 52. Qxa2 {[%clk 0:00:26]}  Rb7 {[%clk 0:00:06]} 53. Qd5 {[%clk 0:00:26]}  Re7 {[%clk 0:00:07]} 54. e4 {[%clk 0:00:26]}  Qd7 {[%clk 0:00:07]} 55. Qa8+ {[%clk 0:00:25]}  Re8 {[%clk 0:00:07]} 56. Qa6 {[%clk 0:00:26]}  Rd8 {[%clk 0:00:08]} 57. Kg4 {[%clk 0:00:23]}  Qxd3 {[%clk 0:00:07]} 58. Qc6 {[%clk 0:00:23]}  Qd1+ {[%clk 0:00:07]} 59. Kf4 {[%clk 0:00:23]}  Qd2+ {[%clk 0:00:07]} 60. Kg4 {[%clk 0:00:23]}  Qg5+ {[%clk 0:00:08]} 61. Kf3 {[%clk 0:00:23]}  Qh5+ {[%clk 0:00:07]} 62. Kf4 {[%clk 0:00:23]}  Qg5+ {[%clk 0:00:07]} 63. Kf3 {[%clk 0:00:24]}  Qd2 {[%clk 0:00:08]} 64. Kg4 {[%clk 0:00:24]}  Qd1+ {[%clk 0:00:08]} 65. Kf4 {[%clk 0:00:24]}  Qd7 {[%clk 0:00:08]} 66. Qb6 {[%clk 0:00:23]}  Qd6+ {[%clk 0:00:09]} 67. Qxd6 {[%clk 0:00:23]}  Rxd6 {[%clk 0:00:10]} 68. e5 {[%clk 0:00:23]}  fxe5+ {[%clk 0:00:11]} 69. Kxe5 {[%clk 0:00:24]}  Ra6 {[%clk 0:00:12]} 70. h4 {[%clk 0:00:24]}  Kg8 {[%clk 0:00:12]} 71. g4 {[%clk 0:00:24]}  Kf7 {[%clk 0:00:13]} 72. g5 {[%clk 0:00:25]}  Ra5+ {[%clk 0:00:14]} 73. Kf4 {[%clk 0:00:24]}  Ra4+ {[%clk 0:00:14]} 74. Kg3 {[%clk 0:00:24]}  h5 {[%clk 0:00:15]} 75. Kh3 {[%clk 0:00:24]}  Rg4 {[%clk 0:00:15]} 76. Kh2 {[%clk 0:00:23]}  Ke7 {[%clk 0:00:16]} 77. Kh3 {[%clk 0:00:24]}  Kd6 {[%clk 0:00:17]} 78. Kh2 {[%clk 0:00:24]}  Ke5 {[%clk 0:00:18]} 79. f6 {[%clk 0:00:24]}  gxf6 {[%clk 0:00:18]} 80. gxf6 {[%clk 0:00:25]}  Kxf6 {[%clk 0:00:19]} 81. Kh3 {[%clk 0:00:25]}  Kf5 {[%clk 0:00:20]} 82. Kh2 {[%clk 0:00:26]}  Rxh4+ {[%clk 0:00:20]} 83. Kg3 {[%clk 0:00:25]}  Ra4 {[%clk 0:00:21]} 84. Kf3 {[%clk 0:00:26]}  Kg5 {[%clk 0:00:22]} 0-1


[Site "https://www.chess.com"]

[Event "Titled Tuesday Blitz May 10 Late 2022"]
[White "Dourerassou, Jonathan"]
[Black "Martinez Reyes, Pedro Ramon"]
[WhiteFideId "628050"]
[BlackFideId "3901807"]
[WhiteElo "2499"]
[BlackElo "2410"]
[Result "1-0"]
[Round "06"]
[TimeControl "180+1"]
[Date "2022.05.10"]
[WhiteClock "0:01:51"]
[BlackClock "0:00:12"]

1. d4 {[%clk 0:03:00]}  Nf6 {[%clk 0:02:59]} 2. c4 {[%clk 0:02:59]}  d5 {[%clk 0:02:56]} 3. cxd5 {[%clk 0:02:58]}  c6 {[%clk 0:02:56]} 4. dxc6 {[%clk 0:02:55]}  Nxc6 {[%clk 0:02:54]} 5. e3 {[%clk 0:02:55]}  e5 {[%clk 0:02:52]} 6. Nf3 {[%clk 0:02:55]}  Bb4+ {[%clk 0:02:42]} 7. Nc3 {[%clk 0:02:54]}  exd4 {[%clk 0:02:33]} 8. exd4 {[%clk 0:02:54]}  Bg4 {[%clk 0:02:21]} 9. Be2 {[%clk 0:02:54]}  O-O {[%clk 0:02:15]} 10. O-O {[%clk 0:02:52]}  Bxf3 {[%clk 0:02:11]} 11. Bxf3 {[%clk 0:02:53]}  Nxd4 {[%clk 0:02:11]} 12. Bxb7 {[%clk 0:02:52]}  Rb8 {[%clk 0:02:12]} 13. Bf3 {[%clk 0:02:48]}  Bxc3 {[%clk 0:01:47]} 14. bxc3 {[%clk 0:02:48]}  Nxf3+ {[%clk 0:01:47]} 15. Qxf3 {[%clk 0:02:48]}  Qa5 {[%clk 0:01:48]} 16. Bf4 {[%clk 0:02:42]}  Rbc8 {[%clk 0:01:46]} 17. Rfc1 {[%clk 0:02:42]}  Nd5 {[%clk 0:01:37]} 18. Be5 {[%clk 0:02:41]}  Rc4 {[%clk 0:01:20]} 19. h3 {[%clk 0:02:30]}  Rfc8 {[%clk 0:01:19]} 20. Rab1 {[%clk 0:02:22]}  Nb6 {[%clk 0:00:35]} 21. Qg3 {[%clk 0:02:11]}  g6 {[%clk 0:00:31]} 22. Re1 {[%clk 0:02:09]}  Qxa2 {[%clk 0:00:25]} 23. Bd4 {[%clk 0:02:08]}  Qa3 {[%clk 0:00:18]} 24. Qe5 {[%clk 0:02:04]}  Rxd4 {[%clk 0:00:18]} 25. cxd4 {[%clk 0:02:04]}  Qa2 {[%clk 0:00:16]} 26. Qf6 {[%clk 0:02:02]}  Qd5 {[%clk 0:00:12]} 27. Re5 {[%clk 0:01:56]}  Qa2 {[%clk 0:00:11]} 28. Rbe1 {[%clk 0:01:55]}  Nd7 {[%clk 0:00:10]} 29. Re8+ {[%clk 0:01:54]}  Rxe8 {[%clk 0:00:11]} 30. Rxe8+ {[%clk 0:01:55]}  Nf8 {[%clk 0:00:11]} 31. Qe7 {[%clk 0:01:51]}  Qa1+ {[%clk 0:00:11]} 32. Kh2 {[%clk 0:01:51]}  Qa3 {[%clk 0:00:12]} 1-0


[Site "https://www.chess.com"]

[Event "Titled Tuesday Blitz May 10 Late 2022"]
[White "Erdogdu, Mert"]
[Black "Baches Garcia, Guillermo"]
[WhiteFideId "6301495"]
[BlackFideId "2209764"]
[WhiteElo "2451"]
[BlackElo "2520"]
[Result "1-0"]
[Round "06"]
[TimeControl "180+1"]
[Date "2022.05.11"]
[WhiteClock "0:00:17"]
[BlackClock "0:00:01"]

1. c4 {[%clk 0:03:00]}  e5 {[%clk 0:02:59]} 2. Nc3 {[%clk 0:03:01]}  Nf6 {[%clk 0:03:00]} 3. g3 {[%clk 0:03:01]}  d5 {[%clk 0:03:00]} 4. cxd5 {[%clk 0:03:01]}  Nxd5 {[%clk 0:03:01]} 5. Bg2 {[%clk 0:03:02]}  Nb6 {[%clk 0:03:01]} 6. e3 {[%clk 0:03:02]}  Be7 {[%clk 0:02:59]} 7. Nge2 {[%clk 0:03:03]}  O-O {[%clk 0:02:59]} 8. O-O {[%clk 0:03:04]}  c5 {[%clk 0:02:55]} 9. f4 {[%clk 0:03:02]}  exf4 {[%clk 0:02:53]} 10. Nxf4 {[%clk 0:03:02]}  Nc6 {[%clk 0:02:50]} 11. b3 {[%clk 0:03:02]}  Bf6 {[%clk 0:02:34]} 12. Bb2 {[%clk 0:03:01]}  Bd7 {[%clk 0:02:19]} 13. Rc1 {[%clk 0:02:55]}  Rc8 {[%clk 0:02:17]} 14. Ba3 {[%clk 0:02:43]}  Nb4 {[%clk 0:01:53]} 15. Ne4 {[%clk 0:02:40]}  Bb5 {[%clk 0:01:25]} 16. Rf2 {[%clk 0:02:33]}  Be7 {[%clk 0:01:20]} 17. Nh5 {[%clk 0:01:56]}  Nd3 {[%clk 0:01:14]} 18. Qg4 {[%clk 0:01:49]}  g6 {[%clk 0:01:12]} 19. Nhf6+ {[%clk 0:01:44]}  Bxf6 {[%clk 0:01:11]} 20. Nxf6+ {[%clk 0:01:44]}  Kg7 {[%clk 0:01:08]} 21. Qh4 {[%clk 0:01:10]}  h5 {[%clk 0:00:47]} 22. Rf5 {[%clk 0:00:56]}  Nd7 {[%clk 0:00:42]} 23. Nxh5+ {[%clk 0:00:53]}  Kg8 {[%clk 0:00:32]} 24. Rg5 {[%clk 0:00:43]}  Nxc1 {[%clk 0:00:23]} 25. Bb2 {[%clk 0:00:40]}  Nd3 {[%clk 0:00:16]} 26. Bd5 {[%clk 0:00:38]}  Rc6 {[%clk 0:00:06]} 27. Bc3 {[%clk 0:00:21]}  Qe7 {[%clk 0:00:04]} 28. Nf4 {[%clk 0:00:19]}  N7e5 {[%clk 0:00:01]} 29. Nxg6 {[%clk 0:00:17]} 1-0


[Site "https://www.chess.com"]

[Event "Titled Tuesday Blitz May 10 Late 2022"]
[White "Gomez Dieguez, David"]
[Black "Akrakan"]
[WhiteFideId "22223630"]
[WhiteElo "2115"]
[BlackElo "2117"]
[Result "0-1"]
[Round "06"]
[TimeControl "180+1"]
[Date "2022.05.11"]
[WhiteClock "0:00:06"]
[BlackClock "0:01:12"]

1. c4 {[%clk 0:03:00]}  e5 {[%clk 0:02:59]} 2. Nc3 {[%clk 0:03:00]}  Nf6 {[%clk 0:03:00]} 3. Nf3 {[%clk 0:03:00]}  d6 {[%clk 0:02:59]} 4. d4 {[%clk 0:02:55]}  exd4 {[%clk 0:02:55]} 5. Nxd4 {[%clk 0:02:56]}  Be7 {[%clk 0:02:55]} 6. g3 {[%clk 0:02:55]}  O-O {[%clk 0:02:55]} 7. Bg2 {[%clk 0:02:55]}  c6 {[%clk 0:02:55]} 8. e4 {[%clk 0:02:52]}  Be6 {[%clk 0:02:55]} 9. b3 {[%clk 0:02:51]}  Nbd7 {[%clk 0:02:54]} 10. O-O {[%clk 0:02:50]}  a5 {[%clk 0:02:54]} 11. Bb2 {[%clk 0:02:50]}  Nc5 {[%clk 0:02:55]} 12. Qc2 {[%clk 0:02:45]}  Qd7 {[%clk 0:02:54]} 13. Rfe1 {[%clk 0:02:43]}  Bh3 {[%clk 0:02:52]} 14. Bh1 {[%clk 0:02:43]}  Rfe8 {[%clk 0:02:49]} 15. Rad1 {[%clk 0:02:42]}  Rad8 {[%clk 0:02:48]} 16. a3 {[%clk 0:02:32]}  Qc7 {[%clk 0:02:41]} 17. b4 {[%clk 0:02:25]}  axb4 {[%clk 0:02:41]} 18. axb4 {[%clk 0:02:26]}  Ne6 {[%clk 0:02:41]} 19. Nf5 {[%clk 0:02:15]}  h6 {[%clk 0:02:24]} 20. Ne2 {[%clk 0:01:48]}  Bxf5 {[%clk 0:02:18]} 21. exf5 {[%clk 0:01:47]}  Ng5 {[%clk 0:02:19]} 22. h4 {[%clk 0:01:34]}  Ngh7 {[%clk 0:02:18]} 23. Nd4 {[%clk 0:01:23]}  d5 {[%clk 0:02:15]} 24. c5 {[%clk 0:01:22]}  Bf8 {[%clk 0:02:05]} 25. Nf3 {[%clk 0:01:20]}  Ne4 {[%clk 0:02:02]} 26. Nd4 {[%clk 0:01:07]}  Nhf6 {[%clk 0:01:57]} 27. Bf3 {[%clk 0:00:59]}  Nxg3 {[%clk 0:01:42]} 28. fxg3 {[%clk 0:00:58]}  Qxg3+ {[%clk 0:01:41]} 29. Qg2 {[%clk 0:00:48]}  Rxe1+ {[%clk 0:01:39]} 30. Rxe1 {[%clk 0:00:47]}  Qxe1+ {[%clk 0:01:39]} 31. Kh2 {[%clk 0:00:47]}  Re8 {[%clk 0:01:34]} 32. Kh3 {[%clk 0:00:29]}  Kh8 {[%clk 0:01:28]} 33. Ne2 {[%clk 0:00:22]}  Qxb4 {[%clk 0:01:27]} 34. Bd4 {[%clk 0:00:20]}  Rxe2 {[%clk 0:01:20]} 35. Qxe2 {[%clk 0:00:20]}  Qxd4 {[%clk 0:01:21]} 36. Kg3 {[%clk 0:00:14]}  Qxc5 {[%clk 0:01:18]} 37. Qb2 {[%clk 0:00:14]}  b5 {[%clk 0:01:17]} 38. Qa2 {[%clk 0:00:14]}  b4 {[%clk 0:01:16]} 39. Qa8 {[%clk 0:00:15]}  Kg8 {[%clk 0:01:16]} 40. Qb8 {[%clk 0:00:14]}  Qc3 {[%clk 0:01:15]} 41. Kg2 {[%clk 0:00:12]}  b3 {[%clk 0:01:13]} 42. Bd1 {[%clk 0:00:07]}  b2 {[%clk 0:01:12]} 43. Kf1 {[%clk 0:00:06]}  Qc1 {[%clk 0:01:12]} 44. Ke2 {[%clk 0:00:06]}  b1=Q {[%clk 0:01:12]} 0-1


[Site "https://www.chess.com"]

[Event "Titled Tuesday Blitz May 10 Late 2022"]
[White "Gomez Ledo, Roberto Carlos"]
[Black "Bouget, Alexandre"]
[WhiteFideId "3507076"]
[BlackFideId "681318"]
[WhiteElo "2379"]
[BlackElo "2182"]
[Result "1-0"]
[Round "06"]
[TimeControl "180+1"]
[Date "2022.05.11"]
[WhiteClock "0:00:50"]
[BlackClock "0:01:04"]

1. d4 {[%clk 0:03:00]}  Nf6 {[%clk 0:02:49]} 2. Bf4 {[%clk 0:03:00]}  e6 {[%clk 0:02:50]} 3. e3 {[%clk 0:03:00]}  d5 {[%clk 0:02:50]} 4. Nf3 {[%clk 0:03:00]}  c5 {[%clk 0:02:51]} 5. c3 {[%clk 0:02:59]}  Nc6 {[%clk 0:02:52]} 6. Nbd2 {[%clk 0:02:59]}  Bd6 {[%clk 0:02:51]} 7. Bg3 {[%clk 0:02:59]}  O-O {[%clk 0:02:51]} 8. Bd3 {[%clk 0:02:59]}  b6 {[%clk 0:02:48]} 9. e4 {[%clk 0:02:59]}  dxe4 {[%clk 0:02:46]} 10. Nxe4 {[%clk 0:02:58]}  Nxe4 {[%clk 0:02:44]} 11. Bxe4 {[%clk 0:02:57]}  Bb7 {[%clk 0:02:44]} 12. dxc5 {[%clk 0:02:58]}  Bxc5 {[%clk 0:02:42]} 13. Qa4 {[%clk 0:02:58]}  Rc8 {[%clk 0:02:35]} 14. Rd1 {[%clk 0:02:56]}  Qe7 {[%clk 0:02:31]} 15. O-O {[%clk 0:02:55]}  f5 {[%clk 0:02:28]} 16. Bc2 {[%clk 0:02:44]}  e5 {[%clk 0:02:18]} 17. Bh4 {[%clk 0:02:39]}  Qc7 {[%clk 0:02:14]} 18. Ng5 {[%clk 0:02:24]}  Nd8 {[%clk 0:02:05]} 19. Rd7 {[%clk 0:01:46]}  Qc6 {[%clk 0:02:03]} 20. Qxc6 {[%clk 0:01:42]}  Bxc6 {[%clk 0:02:04]} 21. Rxa7 {[%clk 0:01:38]}  h6 {[%clk 0:02:02]} 22. Bb3+ {[%clk 0:01:37]}  Kh8 {[%clk 0:02:01]} 23. Ne6 {[%clk 0:01:11]}  Nxe6 {[%clk 0:01:55]} 24. Bxe6 {[%clk 0:01:12]}  Rce8 {[%clk 0:01:53]} 25. Bf7 {[%clk 0:01:09]}  Ra8 {[%clk 0:01:45]} 26. Rxa8 {[%clk 0:01:06]}  Bxa8 {[%clk 0:01:46]} 27. Bg6 {[%clk 0:01:04]}  Bd5 {[%clk 0:01:39]} 28. a3 {[%clk 0:00:58]}  Bg8 {[%clk 0:01:28]} 29. Rd1 {[%clk 0:00:56]}  Bh7 {[%clk 0:01:27]} 30. Bxh7 {[%clk 0:00:54]}  Kxh7 {[%clk 0:01:28]} 31. b4 {[%clk 0:00:54]}  g5 {[%clk 0:01:12]} 32. bxc5 {[%clk 0:00:53]}  gxh4 {[%clk 0:01:12]} 33. cxb6 {[%clk 0:00:52]}  Rb8 {[%clk 0:01:11]} 34. Rb1 {[%clk 0:00:51]}  f4 {[%clk 0:01:03]} 35. a4 {[%clk 0:00:52]}  Rxb6 {[%clk 0:01:04]} 36. Rxb6 {[%clk 0:00:50]} 1-0


[Site "https://www.chess.com"]